bitfinex-derivatives/quotes_SOLF0:USTF0_20250328
["timestamp","ask_amount","ask_price","bid_price","bid_amount"]
[1743205361594,0.0571961,129.4,129.39,17.651252]
[1743205368400,7.7295,129.44,129.41,7.7307]
[1743205368597,7.7295,129.44,129.42,27.12]
[1743205369303,7.78646669,129.44,129.42,27.17252116]
[1743205378614,0.05696669,129.44,129.42,44.82167316]
[1743205381415,0.05696669,129.44,129.43,17.648852]
[1743205382003,42.62043596,129.47,129.43,9.919052]
[1743205382201,42.62043596,129.47,129.46,9.919052]
[1743205382404,42.62043596,129.47,129.46,37.039052]
[1743205383908,42.62043596,129.47,129.46,27.12]
[1743205385619,0.05183064,129.48,129.46,27.12]
[1743205386321,0.05183064,129.48,129.46,34.848]
[1743205387324,0.05183064,129.48,129.46,44.767052]
[1743205388823,0.05183064,129.48,129.47,9.919052]
[1743205389322,0.05183064,129.48,129.47,17.646552]
[1743205390221,68.12475214,129.52,129.47,9.919052]
[1743205390521,68.12475214,129.52,129.46,27.12]
[1743205390522,68.12475214,129.52,129.49,9.919052]
[1743205390716,75.84955214,129.52,129.5,27.12]
[1743205390923,7.7248,129.52,129.5,27.12]
[1743205391123,9.919052,129.53,129.5,27.12]
[1743205391323,7.7251,129.51,129.5,27.12]
[1743205391510,7.7251,129.51,129.5,27.17752734]
[1743205392022,17.644152,129.51,129.5,0.05752734]
[1743205393315,7.7251,129.51,129.5,0.05752734]
[1743205399517,7.7247,129.52,129.5,0.05752734]
[1743205401329,7.7251,129.51,129.5,0.05752734]
[1743205402230,7.7246,129.52,129.5,7.78302734]
[1743205403231,7.7246,129.52,129.5,0.05752734]
[1743205404038,7.7246,129.52,129.5,27.15752734]
[1743205406950,7.7251,129.51,129.5,27.15752734]
[1743205410656,7.7248,129.52,129.5,27.15752734]
[1743205411656,7.7251,129.51,129.5,27.15752734]
[1743205418452,7.7251,129.51,129.5,0.00033123]
[1743205418760,7.7275,129.47,129.46,281.92]
[1743205419154,7.7275,129.47,129.46,27.1]
[1743205419460,7.7281,129.46,129.44,9.919052]
[1743205419660,27.1,129.52,129.44,9.919052]
[1743205419661,9.919052,129.47,129.44,27.1]
[1743205419849,0.05256393,129.46,129.44,27.15476527]
[1743205420049,7.7286,129.45,129.44,27.15476527]
[1743205428261,7.78086393,129.46,129.44,27.15476527]
[1743205429869,7.78086393,129.46,129.44,44.80301727]
[1743205430060,0.05256393,129.46,129.45,9.919052]
[1743205430662,0.05256393,129.46,129.45,17.647652]
[1743205433472,26.63832154,129.46,129.45,17.647652]
[1743205433865,26.63832154,129.46,129.45,9.919052]
[1743205435269,7.7286,129.45,129.44,37.07381727]
[1743205436471,7.78076393,129.46,129.44,37.07381727]
[1743205437076,0.05256393,129.46,129.44,44.80291727]
[1743205437473,0.05256393,129.46,129.44,37.07381727]
[1743205437672,7.78066393,129.46,129.44,37.07381727]
[1743205438076,37.25160173,129.45,129.44,37.07381727]
[1743205440982,44.98020173,129.45,129.44,37.07381727]
[1743205441373,37.25160173,129.45,129.44,37.07381727]
[1743205442981,37.25160173,129.45,129.44,44.80301727]
[1743205443583,26.58456667,129.45,129.44,44.80301727]
[1743205446476,37.25160173,129.45,129.44,44.80301727]
[1743205447182,37.25160173,129.45,129.44,37.07381727]
[1743205447987,37.25160173,129.45,129.44,44.80301727]
[1743205451285,98.97049423,129.45,129.44,44.80301727]
[1743205453785,218.30615109,129.45,129.44,44.80301727]
[1743205455692,218.30615109,129.45,129.44,37.07381727]
[1743205456093,186.35275019,129.45,129.44,37.07381727]
[1743205456885,194.08135019,129.45,129.44,0.05476527]
[1743205457081,204.00040219,129.45,129.44,0.05476527]
[1743205458294,7.7304,129.42,129.41,27.1]
[1743205458586,9.919052,129.42,129.4,254.8]
[1743205458792,9.919052,129.42,129.39,27.1]
[1743205458991,7.731,129.41,129.39,27.1]
[1743205459590,7.78909083,129.41,129.39,27.15579545]
[1743205460690,218.75518983,129.4,129.39,27.15579545]
[1743205463086,88.44735699,129.4,129.39,27.15579545]
[1743205464996,88.44735699,129.4,129.39,0.05579545]
[1743205466593,99.12404606,129.4,129.39,0.05579545]
[1743205469598,99.12404606,129.4,129.39,7.78799545]
[1743205478702,26.58456667,129.4,129.39,7.78799545]
[1743205480805,42.83207862,129.41,129.39,7.78799545]
[1743205484395,42.83207862,129.41,129.4,7.7316]
[1743205484599,42.83207862,129.41,129.4,44.750652]
[1743205486016,42.83207862,129.41,129.4,37.019052]
[1743205486309,85.59279659,129.42,129.4,37.019052]
[1743205486510,128.38919488,129.43,129.41,9.919052]
[1743205486701,128.38919488,129.43,129.42,17.649452]
[1743205489314,0.05828171,129.44,129.42,17.649452]
[1743205489515,0.05828171,129.44,129.43,37.019052]
[1743205493316,7.78748171,129.44,129.43,27.1]
[1743205494512,0.05828171,129.44,129.43,27.1]
[1743205495313,7.78748171,129.44,129.43,27.1]
[1743205496206,0.05828171,129.44,129.43,27.1]
[1743205497418,0.05828171,129.44,129.43,34.8298]
[1743205499623,0.05828171,129.44,129.43,27.1]
[1743205500217,0.05828171,129.44,129.43,34.8298]
[1743205500719,0.05828171,129.44,129.43,27.1]
[1743205500920,7.78748171,129.44,129.43,27.1]
[1743205501422,0.05828171,129.44,129.43,27.1]
[1743205501816,0.05828171,129.44,129.43,37.019052]
[1743205502020,0.05828171,129.44,129.43,44.748852]
[1743205502517,128.49859488,129.49,129.43,37.019052]
[1743205502724,128.38919488,129.49,129.47,9.919052]
[1743205502926,128.38919488,129.49,129.47,37.019052]
[1743205503526,128.38919488,129.5,129.47,37.019052]
[1743205503726,0.05438965,129.49,129.47,27.15346604]
[1743205503926,7.78068965,129.49,129.47,27.15346604]
[1743205504628,7.7269,129.48,129.47,27.15346604]
[1743205504929,0.05438965,129.49,129.47,27.15346604]
[1743205505222,7.78098965,129.49,129.47,27.15346604]
[1743205506230,7.7269,129.48,129.47,27.15346604]
[1743205508834,7.78098965,129.49,129.47,27.15346604]
[1743205509533,7.7269,129.48,129.47,27.15346604]
[1743205525038,0.05438965,129.49,129.47,27.15346604]
[1743205525246,0.05438965,129.49,129.48,9.919052]
[1743205526951,0.05438965,129.49,129.48,17.645952]
[1743205529647,0.05438965,129.49,129.47,27.15346604]
[1743205530448,7.78098965,129.49,129.47,27.15346604]
[1743205530950,7.78068965,129.49,129.47,27.15346604]
[1743205531145,0.05438965,129.49,129.47,27.15346604]
[1743205531752,0.05438965,129.49,129.47,34.88086604]
[1743205532949,0.05438965,129.49,129.48,27.08]
[1743205536452,0.05438965,129.49,129.48,34.8069]
[1743205538955,0.05438965,129.49,129.48,44.725952]
[1743205545460,0.05438965,129.49,129.48,46.729452]
[1743205558466,0.05438965,129.49,129.48,36.999052]
[1743205558663,0.05438965,129.49,129.48,27.08]
[1743205559264,0.05438965,129.49,129.47,0.05346604]
[1743205559469,0.05438965,129.49,129.48,27.08]
[1743205560165,7.78098965,129.49,129.48,27.08]
[1743205561470,32.34774943,129.49,129.48,27.08]
[1743205562167,24.62114943,129.49,129.48,27.08]
[1743205563170,32.34744943,129.49,129.48,27.08]
[1743205566276,24.62114943,129.49,129.48,27.08]
[1743205566876,24.62114943,129.49,129.47,7.78086604]
[1743205567076,24.62114943,129.49,129.48,27.08]
[1743205567277,35.33842129,129.49,129.48,27.08]
[1743205567777,43.06472129,129.49,129.48,27.08]
[1743205570881,35.33842129,129.49,129.48,27.08]
[1743205572989,43.06472129,129.49,129.48,27.08]
[1743205580392,32.34744943,129.49,129.48,27.08]
[1743205580592,24.62114943,129.49,129.48,36.999052]
[1743205581095,24.62114943,129.49,129.48,44.725952]
[1743205582894,0.05438965,129.49,129.48,44.725952]
[1743205583603,0.05438965,129.49,129.48,36.999052]
[1743205585801,0.05438965,129.49,129.48,44.725952]
[1743205587102,0.05438965,129.49,129.48,36.999052]
[1743205587808,7.78068965,129.49,129.48,36.999052]
[1743205589199,7.78068965,129.49,129.48,27.08]
[1743205589401,7.78068965,129.49,129.47,9.97251804]
[1743205589702,7.78068965,129.49,129.48,27.08]
[1743205593404,102.58062247,129.49,129.48,27.08]
[1743205602417,7.7275,129.47,129.45,9.919052]
[1743205602715,7.7275,129.47,129.46,27.08]
[1743205603111,7.7275,129.47,129.44,19.625652]
[1743205603311,7.7275,129.47,129.45,27.08]
[1743205603613,7.7275,129.47,129.45,27.13898971]
[1743205606006,7.7275,129.47,129.45,37.05804171]
[1743205609011,7.7275,129.47,129.45,9.97804171]
[1743205609213,7.7275,129.47,129.46,27.08]
[1743205612116,50.45093846,129.48,129.46,27.08]
[1743205612319,42.72393846,129.48,129.47,9.919052]
[1743205615811,7.78068965,129.49,129.47,9.919052]
[1743205618525,18.49796151,129.49,129.47,9.919052]
[1743205620226,10.77166151,129.49,129.47,9.919052]
[1743205621027,18.49796151,129.49,129.47,9.919052]
[1743205621627,10.77166151,129.49,129.47,9.919052]
[1743205622128,42.77832811,129.49,129.47,9.919052]
[1743205622732,50.50462811,129.49,129.47,9.919052]
[1743205625429,18.49796151,129.49,129.47,9.919052]
[1743205626535,10.77166151,129.49,129.47,17.646352]
[1743205630141,10.77166151,129.49,129.47,9.919052]
[1743205632841,18.49806151,129.49,129.47,9.919052]
[1743205633239,18.49806151,129.49,129.46,34.8077]
[1743205633834,10.77166151,129.49,129.46,27.08]
[1743205634541,7.7274,129.48,129.46,27.08]
[1743205634730,10.77166151,129.49,129.46,27.08]
[1743205635337,20.69071351,129.49,129.46,27.08]
[1743205635529,43.07647854,129.48,129.46,27.08]
[1743205636639,7.7275,129.47,129.46,27.08]
[1743205637739,10.71727186,129.48,129.46,36.999052]
[1743205640036,50.50482811,129.49,129.46,36.999052]
[1743205643243,35.35302772,129.48,129.46,36.999052]
[1743205645246,43.07992772,129.48,129.46,36.999052]
[1743205645447,35.35302772,129.48,129.46,36.999052]
[1743205645647,35.35302772,129.48,129.46,44.726952]
[1743205646148,10.71727186,129.48,129.46,36.999052]
[1743205648357,10.71727186,129.48,129.46,44.727052]
[1743205651958,50.50492811,129.49,129.46,44.727052]
[1743205654749,24.63644437,129.48,129.46,44.727052]
[1743205657162,24.63644437,129.48,129.47,7.7275]
[1743205658355,42.77832811,129.49,129.46,44.726952]
[1743205658556,42.77832811,129.49,129.46,36.999052]
[1743205659063,7.7271,129.48,129.46,36.999052]
[1743205659948,7.7275,129.47,129.46,27.08]
[1743205660764,7.7281,129.46,129.45,0.05898971]
[1743205664658,17.647152,129.46,129.45,0.05898971]
[1743205665269,112.47818871,129.46,129.45,0.05898971]
[1743205667468,7.7292,129.44,129.43,27.06]
[1743205667864,7.7298,129.43,129.42,254.84]
[1743205668168,7.7298,129.43,129.42,281.9]
[1743205668368,7.7298,129.43,129.42,254.84]
[1743205668563,7.7298,129.43,129.42,281.9]
[1743205679481,7.78408648,129.44,129.42,281.9]
[1743205683479,7.7298,129.43,129.42,281.9]
[1743205683882,7.7298,129.43,129.42,27.06]
[1743205686387,7.7304,129.42,129.41,0.05398164]
[1743205692592,9.919052,129.43,129.41,0.05398164]
[1743205693808,7.7304,129.42,129.41,0.05398164]
[1743205699310,10.71727186,129.43,129.41,9.97303364]
[1743205699604,4.20167186,129.43,129.42,9.919052]
[1743205699908,117.43276926,129.44,129.43,7.7298]
[1743205700105,117.43276926,129.44,129.43,44.728852]
[1743205700306,45.05527044,129.44,129.43,44.728852]
[1743205702094,0.05903026,129.45,129.44,7.7292]
[1743205702398,0.05903026,129.45,129.44,17.648252]
[1743205702994,0.05903026,129.45,129.44,9.919052]
[1743205703199,0.05903026,129.45,129.43,27.08]
[1743205704508,7.78803026,129.45,129.43,27.08]
[1743205707707,7.7293,129.44,129.43,27.06]
[1743205708909,9.919052,129.44,129.41,0.05398164]
[1743205709207,9.919052,129.43,129.41,27.11398164]
[1743205709409,17.649452,129.42,129.41,27.11398164]
[1743205711314,17.649452,129.42,129.41,0.05398164]
[1743205723422,7.7334,129.38,129.37,27.06]
[1743205723720,17.652452,129.38,129.37,27.06]
[1743205723917,17.651652,129.39,129.37,27.06]
[1743205724120,7.7326,129.39,129.37,27.06]
[1743205724517,7.78444531,129.39,129.37,27.1149881]
[1743205725021,7.7328,129.38,129.37,27.1149881]
[1743205734128,7.7328,129.38,129.37,0.0549881]
[1743205738519,17.651852,129.38,129.37,0.0549881]
[1743205743937,0.05184531,129.39,129.37,0.0549881]
[1743205744132,0.05184531,129.39,129.38,9.919052]
[1743205745129,0.05184531,129.39,129.38,17.651852]
[1743205746138,4.531e-05,129.39,129.38,17.651852]
[1743205746842,4.531e-05,129.39,129.38,19.07169605]
[1743205749043,4.531e-05,129.39,129.38,17.651852]
[1743205749344,4.531e-05,129.39,129.38,19.07168347]
[1743205750643,4.531e-05,129.39,129.38,17.651852]
[1743205750848,4.531e-05,129.39,129.38,19.07168534]
[1743205753652,4.531e-05,129.39,129.38,274.03168534]
[1743205754753,4.531e-05,129.39,129.38,274.03168517]
[1743205756647,7.7284,129.46,129.42,7.73]
[1743205756858,7.7284,129.46,129.43,27.06]
[1743205757354,7.7284,129.46,129.43,34.7898]
[1743205757555,17.646852,129.47,129.43,34.7898]
[1743205757948,0.05037864,129.46,129.44,0.05191319]
[1743205758244,7.77867864,129.46,129.44,0.05191319]
[1743205769765,7.7286,129.45,129.44,0.05191319]
[1743205776369,7.7292,129.44,129.43,27.06]
[1743205776570,9.919052,129.44,129.39,9.919052]
[1743205776770,9.919052,129.44,129.4,27.06]
[1743205776971,7.7308,129.42,129.4,27.06]
[1743205777475,7.731,129.41,129.4,27.06]
[1743205777674,7.731,129.41,129.4,27.10964155]
[1743205779769,7.731,129.41,129.4,0.04964155]
[1743205779975,7.731,129.41,129.4,27.10964155]
[1743205782175,7.731,129.41,129.4,0.04964155]
[1743205793183,7.7322,129.39,129.38,282.02]
[1743205797186,7.732,129.4,129.38,282.02]
[1743205797483,17.651052,129.4,129.38,282.02]
[1743205799084,7.7322,129.39,129.38,282.02]
[1743205799384,9.919052,129.4,129.38,282.02]
[1743205799786,17.651152,129.4,129.38,282.02]
[1743205800986,17.651152,129.4,129.38,254.96]
[1743205801186,7.7322,129.39,129.38,282.02]
[1743205801986,17.650952,129.4,129.38,282.02]
[1743205802983,17.650952,129.4,129.38,27.06]
[1743205807585,7.7322,129.39,129.38,27.06]
[1743205810583,17.650952,129.4,129.38,27.06]
[1743205817695,7.7322,129.39,129.38,27.06]
[1743205819996,7.7322,129.39,129.37,0.05124338]
[1743205820204,7.7322,129.39,129.37,27.11124338]
[1743205820405,17.651852,129.38,129.37,0.05124338]
[1743205823004,7.734,129.36,129.35,27.06]
[1743205823507,7.734,129.36,129.33,262.7156]
[1743205823703,7.7346,129.35,129.33,254.98]
[1743205824101,9.919052,129.34,129.33,255.03132965]
[1743205824399,9.919052,129.34,129.33,0.05132965]
[1743205824596,9.919052,129.34,129.3,27.06]
[1743205824802,9.919052,129.32,129.3,27.06]
[1743205825110,17.655552,129.32,129.3,27.06]
[1743205825310,9.919052,129.33,129.3,27.06]
[1743205825696,9.919052,129.33,129.3,27.11870065]
[1743205825901,9.97023513,129.33,129.3,34.85600065]
[1743205826305,17.70623513,129.33,129.3,34.85600065]
[1743205826605,17.70623513,129.33,129.3,27.11870065]
[1743205827918,9.97023513,129.33,129.3,27.11870065]
[1743205828114,0.05118313,129.33,129.3,37.03775265]
[1743205829812,0.05118313,129.33,129.31,7.737]
[1743205830719,0.05118313,129.33,129.32,7.7364]
[1743205831520,0.05118313,129.33,129.31,7.7367]
[1743205845530,0.05118313,129.33,129.32,7.7364]
[1743205845732,0.05118313,129.33,129.32,17.655452]
[1743205845927,42.70488234,129.34,129.33,9.919052]
[1743205846129,39.44478234,129.34,129.33,44.714852]
[1743205847137,39.44478234,129.34,129.33,34.7958]
[1743205848036,0.05040236,129.35,129.33,34.7958]
[1743205848537,0.05040236,129.35,129.33,34.8535762]
[1743205850041,0.05040236,129.35,129.33,27.1177762]
[1743205852038,0.05040236,129.35,129.33,0.0577762]
[1743205852241,9.96945436,129.35,129.33,0.0577762]
[1743205852645,7.7352,129.34,129.33,0.0577762]
[1743205854344,75.02902762,129.34,129.33,0.0577762]
[1743205854545,84.94807962,129.34,129.33,0.0577762]
[1743205854845,77.21287962,129.34,129.3,27.06]
[1743205855345,7.7368,129.32,129.29,9.919052]
[1743205855545,7.7368,129.32,129.3,27.06]
[1743205855938,7.79538069,129.32,129.3,27.114485]
[1743205856646,18.47159853,129.32,129.3,27.114485]
[1743205856943,10.73479853,129.32,129.3,27.114485]
[1743205858949,67.29382762,129.31,129.3,34.851985]
[1743205859452,67.29382762,129.31,129.3,27.114485]
[1743205860745,67.29382762,129.31,129.3,34.852085]
[1743205864158,67.29382762,129.31,129.3,27.114485]
[1743205864749,67.29382762,129.31,129.3,0.054485]
[1743205864950,75.03082762,129.31,129.3,0.054485]
[1743205865356,67.29382762,129.31,129.3,0.054485]
[1743205865661,75.03082762,129.31,129.3,0.054485]
[1743205866855,194.78839923,129.31,129.3,0.054485]
[1743205869164,254.59113555,129.31,129.3,0.054485]
[1743205869363,382.98033043,129.31,129.3,0.054485]
[1743205869761,382.98033043,129.31,129.28,27.06]
[1743205870567,7.7377,129.3,129.27,264.939052]
[1743205870766,7.7377,129.3,129.28,27.06]
[1743205872166,204.70775123,129.31,129.28,27.06]
[1743205873273,204.70775123,129.31,129.28,34.7988]
[1743205874572,67.29611493,129.3,129.28,34.7988]
[1743205876976,42.70525538,129.3,129.28,34.7988]
[1743205880276,50.44255538,129.31,129.28,34.7988]
[1743205882177,50.44255538,129.31,129.28,27.06]
[1743205882178,42.70525538,129.31,129.28,27.06]
[1743205882365,42.70525538,129.31,129.28,36.979052]
[1743205882867,42.70525538,129.31,129.3,7.7376]
[1743205883678,42.70525538,129.31,129.3,17.656652]
[1743205883874,5.42814952,129.31,129.3,17.656652]
[1743205884082,4.952e-05,129.31,129.3,17.656652]
[1743205885982,4.952e-05,129.31,129.3,19.07732061]
[1743205886383,0.05858069,129.32,129.31,7.737]
[1743205886582,0.05858069,129.32,129.31,44.716052]
[1743205888679,0.05858069,129.32,129.31,46.1365948]
[1743205889475,0.05858069,129.32,129.31,44.716052]
[1743205901486,0.05858069,129.32,129.31,36.979052]
[1743205902093,0.05858069,129.32,129.31,44.716052]
[1743205905395,0.05858069,129.32,129.31,36.979052]
[1743205906296,0.05858069,129.32,129.31,27.06]
[1743205913297,0.05858069,129.32,129.3,17.71555994]
[1743205913494,0.05858069,129.32,129.31,27.04]
[1743205914995,0.05858069,129.32,129.31,34.777]
[1743205915197,0.05858069,129.32,129.31,44.696052]
[1743205919000,0.05858069,129.32,129.31,46.11657946]
[1743205920301,0.05858069,129.32,129.31,46.11657469]
[1743205926611,0.05858069,129.32,129.31,44.696052]
[1743205926810,0.05858069,129.32,129.31,46.11657469]
[1743205928312,0.05858069,129.32,129.31,44.696052]
[1743205928613,0.05858069,129.32,129.31,46.11656748]
[1743205931113,0.05858069,129.32,129.31,46.11657469]
[1743205932012,0.05858069,129.32,129.31,46.11657252]
[1743205933015,119.75109565,129.36,129.35,7.7346]
[1743205933208,117.64089565,129.36,129.35,44.693652]
[1743205936215,26.12317327,129.36,129.35,44.693652]
[1743205939015,0.05949743,129.37,129.36,7.734]
[1743205939221,0.05949743,129.37,129.36,17.653052]
[1743205970751,9.743e-05,129.37,129.36,17.653052]
[1743205970951,10.70384614,129.39,129.38,7.7328]
[1743205971148,10.70384614,129.39,129.38,44.671852]
[1743205972950,44.93350172,129.4,129.39,7.7322]
[1743205973148,44.93350172,129.4,129.39,17.651252]
[1743205976156,2.14889644,129.4,129.39,17.651252]
[1743205978153,2.14889644,129.4,129.39,9.919052]
[1743205978358,2.14889644,129.4,129.39,27.02]
[1743205978552,2.14889644,129.4,129.39,23.7622]
[1743205981456,186.9730067,129.4,129.39,23.7622]
[1743205981658,186.9730067,129.4,129.39,34.7522]
[1743205983058,186.9730067,129.4,129.39,44.671252]
[1743205984460,184.8782067,129.4,129.39,44.671252]
[1743205987662,36.9652316,129.4,129.39,44.671252]
[1743205992568,36.9652316,129.4,129.39,36.939052]
[1743205992765,46.8842836,129.4,129.36,254.98]
[1743205993164,46.8842836,129.4,129.36,251.7221]
[1743205993966,46.8842836,129.4,129.37,0.05771271]
[1743205994171,7.7323,129.39,129.37,0.05771271]
[1743205995072,7.7328,129.38,129.37,0.05771271]
[1743205995271,7.7328,129.38,129.36,251.7221]
[1743205996271,293.88490888,129.38,129.36,251.7221]
[1743205996461,286.15210888,129.38,129.36,251.77786884]
[1743205996870,286.15210888,129.38,129.36,259.51186884]
[1743205997071,286.15210888,129.38,129.36,251.77786884]
[1743205998171,293.88510888,129.38,129.36,251.77786884]
[1743205998872,39.9685246,129.37,129.36,251.77786884]
[1743205999174,98.31255063,129.37,129.36,251.77786884]
[1743205999475,144.2886274,129.38,129.36,261.69692084]
[1743205999675,144.2886274,129.38,129.37,9.919052]
[1743206000071,144.2886274,129.38,129.37,17.652452]
[1743206002276,0.05409644,129.4,129.37,17.652452]
[1743206002476,0.05409644,129.4,129.38,36.939052]
[1743206004375,0.05409644,129.4,129.38,27.02]
[1743206006877,0.05409644,129.4,129.38,34.7528]
[1743206007578,0.05409644,129.4,129.38,27.02]
[1743206008681,0.05409644,129.4,129.38,34.7526]
[1743206009378,0.05409644,129.4,129.38,44.671652]
[1743206010586,0.05409644,129.4,129.39,7.7322]
[1743206012084,0.05409644,129.4,129.39,34.7522]
[1743206013985,0.05409644,129.4,129.39,27.02]
[1743206028299,0.05409644,129.4,129.39,34.7522]
[1743206029201,0.05409644,129.4,129.39,44.671252]
[1743206029892,0.05409644,129.4,129.39,36.939052]
[1743206033702,0.05409644,129.4,129.39,44.671252]
[1743206038902,9.644e-05,129.4,129.39,44.671252]
[1743206039101,32.25102948,129.44,129.43,7.7298]
[1743206039308,32.25102948,129.44,129.43,44.668852]
[1743206039807,32.25102948,129.44,129.43,27.02]
[1743206042101,0.05324186,129.45,129.43,27.02]
[1743206043406,0.05324186,129.45,129.43,34.7498]
[1743206044709,0.05324186,129.45,129.44,7.7292]
[1743206054117,0.05324186,129.45,129.44,17.648252]
[1743206080334,4.186e-05,129.45,129.44,17.648252]
[1743206080838,42.97458481,129.5,129.44,11.33828289]
[1743206081034,42.97458481,129.5,129.49,9.919052]
[1743206081232,42.97458481,129.5,129.49,36.919052]
[1743206083343,42.97458481,129.5,129.49,44.645352]
[1743206083529,85.85593779,129.51,129.49,44.645352]
[1743206083530,10.77738886,129.51,129.49,44.645352]
[1743206083728,10.77738886,129.51,129.49,34.7263]
[1743206084539,10.77738886,129.51,129.49,27.0]
[1743206085141,18.50258886,129.51,129.49,27.0]
[1743206085538,10.77738886,129.51,129.49,34.7262]
[1743206086141,0.05383353,129.51,129.49,34.7262]
[1743206087136,7.77893353,129.51,129.49,34.7262]
[1743206088138,17.69798553,129.51,129.49,27.0]
[1743206088334,7.7258,129.5,129.48,7.78111685]
[1743206088535,7.7258,129.5,129.48,34.76111685]
[1743206088737,12.00948553,129.51,129.48,27.03451685]
[1743206088936,9.919052,129.5,129.48,27.03451685]
[1743206089130,17.644952,129.5,129.48,27.03451685]
[1743206089541,17.644952,129.5,129.48,34.76131685]
[1743206090744,7.7263,129.49,129.48,27.03451685]
[1743206103950,32.29528556,129.49,129.48,27.03451685]
[1743206106555,43.01884089,129.49,129.48,27.03451685]
[1743206107052,52.93789289,129.49,129.48,27.03451685]
[1743206107245,7.7275,129.47,129.46,26.98]
[1743206107551,9.919052,129.48,129.45,26.98]
[1743206108052,7.728,129.47,129.45,26.98]
[1743206108243,9.919052,129.48,129.45,26.98]
[1743206108453,0.05749042,129.47,129.45,27.03189992]
[1743206108752,7.7281,129.46,129.45,27.03189992]
[1743206109841,7.78519042,129.47,129.45,27.03189992]
[1743206110353,7.7281,129.46,129.45,27.03189992]
[1743206111454,7.7281,129.46,129.45,0.05189992]
[1743206114855,7.78519042,129.47,129.45,0.05189992]
[1743206115256,7.78519042,129.47,129.45,27.03189992]
[1743206117254,7.7281,129.46,129.45,27.03189992]
[1743206117856,7.78529042,129.47,129.45,27.03189992]
[1743206125066,7.7281,129.46,129.45,27.03189992]
[1743206148078,32.33087758,129.46,129.45,27.03189992]
[1743206155582,7.7281,129.46,129.45,27.03189992]
[1743206159687,32.33441438,129.46,129.45,27.03189992]
[1743206164790,7.7281,129.46,129.45,27.03189992]
[1743206167390,78.19341672,129.46,129.45,27.03189992]
[1743206170096,102.78575754,129.46,129.45,27.03189992]
[1743206173097,43.04399615,129.46,129.45,27.03189992]
[1743206174402,45.23494815,129.46,129.4,254.86]
[1743206174700,9.919052,129.41,129.37,7.7331]
[1743206175300,7.7323,129.39,129.36,44.632852]
[1743206175500,7.7323,129.39,129.38,0.05684225]
[1743206175694,0.05242092,129.4,129.38,0.05684225]
[1743206176096,0.05242092,129.4,129.38,27.03684225]
[1743206177899,7.78452092,129.4,129.38,27.03684225]
[1743206179699,7.7322,129.39,129.38,27.03684225]
[1743206189709,17.70337292,129.4,129.38,27.03684225]
[1743206189902,9.97147292,129.4,129.38,27.03684225]
[1743206190305,7.7322,129.39,129.38,27.03684225]
[1743206191709,7.7322,129.39,129.38,0.05684225]
[1743206202116,17.651252,129.39,129.38,0.05684225]
[1743206208917,7.7322,129.39,129.38,0.05684225]
[1743206211426,7.7331,129.38,129.36,26.98]
[1743206212724,7.7331,129.38,129.36,27.03260941]
[1743206229131,18.45665533,129.38,129.36,27.03260941]
[1743206235039,50.70768481,129.38,129.36,27.03260941]
[1743206239553,7.7334,129.37,129.36,27.03260941]
[1743206240451,34.53733289,129.37,129.33,9.919052]
[1743206240648,34.53733289,129.37,129.33,26.98]
[1743206240953,9.919052,129.36,129.33,26.98]
[1743206241250,17.653552,129.36,129.33,26.98]
[1743206241450,24.61828089,129.37,129.33,26.98]
[1743206241451,24.61828089,129.37,129.35,7.7346]
[1743206241654,0.05227928,129.36,129.35,7.7346]
[1743206241843,0.05227928,129.36,129.35,34.7146]
[1743206243248,0.05227928,129.36,129.35,26.98]
[1743206247059,0.05227928,129.36,129.35,34.7146]
[1743206247355,0.05227928,129.36,129.35,36.7053]
[1743206249056,0.05227928,129.36,129.35,46.624352]
[1743206251556,0.05227928,129.36,129.35,38.889752]
[1743206251763,0.05227928,129.36,129.35,26.98]
[1743206252359,0.05227928,129.36,129.35,36.899052]
[1743206252656,0.05227928,129.36,129.35,44.633652]
[1743206265778,0.05227928,129.36,129.35,36.899052]
[1743206270682,0.05227928,129.36,129.35,9.919052]
[1743206270984,0.05227928,129.36,129.35,36.899052]
[1743206283793,10.72355533,129.38,129.35,36.899052]
[1743206285091,10.77268858,129.38,129.35,36.899052]
[1743206285393,18.50548858,129.38,129.35,44.633352]